bitfinex/quotes_ETHUSD_20250905
["timestamp","ask_amount","ask_price","bid_price","bid_amount"]
[1757082991438,0.02913956,4289.7,4288.0,0.39207439]
[1757082991661,0.02913956,4289.7,4287.8,3.03255942]
[1757082991875,0.02913956,4289.7,4288.1,2.33203516]
[1757082992041,0.025,4289.8,4289.4,2.33131729]
[1757082992241,0.025,4289.8,4289.2,2.33141936]
[1757082992445,0.02913956,4289.7,4287.8,0.025]
[1757082992651,0.02913956,4289.7,4288.5,2.3318026]
[1757082992869,0.02913956,4289.7,4288.4,2.33181807]
[1757082993074,0.02913956,4289.7,4287.9,2.00414]
[1757082994276,0.02913956,4289.7,4287.8,0.025]
[1757082994277,2.4598,4289.6,4287.8,0.025]
[1757082994470,0.792,4288.8,4287.8,0.025]
[1757082994672,2.33214393,4287.9,4287.8,0.025]
[1757082994869,2.36129572,4287.9,4287.8,0.025]
[1757082995048,0.4592,4291.1,4287.8,1.1544]
[1757082995246,0.02158131,4289.7,4287.9,0.4342]
[1757082995479,1.2086,4290.5,4288.0,0.41540318]
[1757082995678,0.02158131,4289.7,4288.0,3.39208229]
[1757082995971,1.23018131,4291.5,4289.3,2.33134849]
[1757082996172,1.23018131,4291.5,4288.5,2.33181765]
[1757082996487,1.23018131,4291.5,4288.4,4.717]
[1757082996488,2.33078135,4290.5,4288.4,4.717]
[1757082996642,0.02158131,4291.1,4289.7,2.33116534]
[1757082997044,1.717,4292.0,4289.7,3.91807699]
[1757082997283,0.116,4291.2,4289.7,4.01076534]
[1757082997603,1e-08,4289.8,4289.7,4.01076534]
[1757082997752,1e-08,4289.8,4289.7,6.91807699]
[1757082997949,1e-08,4289.8,4289.7,9.31289726]
[1757082998571,1e-08,4289.8,4289.7,13.80389726]
[1757082998996,1.717,4293.2,4289.8,3.792]
[1757082999191,2.32914635,4293.5,4290.1,3.0]
[1757082999398,0.02158131,4293.4,4292.7,2.32953618]
[1757082999807,0.02158131,4293.4,4291.6,1.1803]
[1757083000022,0.02158131,4293.4,4291.7,0.11803]
[1757083000216,0.025,4293.8,4291.7,0.11803]
[1757083000217,0.02158131,4292.7,4291.7,0.11803]
[1757083000364,0.02158131,4292.7,4291.3,1.717]
[1757083000718,0.02158131,4292.7,4290.1,3.12291026]
[1757083000719,3.3665,4292.6,4289.4,1.1803]
[1757083001007,2.33012754,4291.7,4289.4,1.67141328]
[1757083001190,2.33042545,4291.1,4290.0,2.33095309]
[1757083001400,2.33013961,4291.6,4290.5,2.33070367]
[1757083001708,0.02158131,4291.5,4289.5,2.33127404]
[1757083001907,2.33072831,4290.6,4288.4,1.1803]
[1757083002107,0.4675,4291.4,4289.4,2.33128623]
[1757083002108,0.02158131,4290.5,4289.4,2.33128623]
[1757083002307,0.02158131,4290.5,4288.8,0.1328511]
[1757083002513,0.02158131,4291.3,4288.9,1.6481]
[1757083002666,2.899,4291.6,4289.0,0.4678]
[1757083002873,0.02158131,4291.5,4289.1,5.265]
[1757083003104,2.33025991,4291.4,4290.2,2.33084036]
[1757083003305,0.02158131,4291.3,4289.2,3.0]
[1757083003504,0.02158131,4291.3,4289.3,1.10642777]
[1757083003505,0.2351772,4291.2,4289.3,1.10642777]
[1757083003704,0.02158131,4291.1,4290.1,2.33092916]
[1757083003913,1.717,4291.6,4289.7,0.4678]
[1757083004118,1.717,4291.6,4290.3,2.33082816]
[1757083004119,0.02158131,4291.4,4290.3,2.33082816]
[1757083004428,1.182,4292.4,4290.4,2.330785]
[1757083004729,0.02158131,4292.3,4290.4,2.330785]
[1757083005020,0.02158131,4292.4,4290.5,0.9463958]
[1757083005174,0.025,4293.8,4290.6,1.67140676]
[1757083005379,0.02158131,4293.7,4290.7,5.33062204]
[1757083005682,0.02158131,4293.6,4290.8,6.963]
[1757083005882,0.02158131,4293.6,4292.4,2.32964834]
[1757083006083,0.02158131,4293.7,4291.9,5.243]
[1757083006287,0.025,4293.8,4292.7,2.32953618]
[1757083006729,0.025,4293.8,4292.7,3.97763618]
[1757083006927,0.025,4293.8,4293.7,2.32899364]
[1757083007131,0.025,4293.8,4293.7,2.35228357]
[1757083007278,2.6824771,4295.7,4293.8,2.3289394]
[1757083007478,2.6824771,4295.7,4293.9,5.92903293]
[1757083007723,0.116,4295.5,4294.8,0.116]
[1757083007906,0.116,4295.5,4295.1,2.32821458]
[1757083008222,0.116,4295.5,4294.8,0.116]
[1757083008426,0.02158131,4295.5,4294.0,5.225]
[1757083008731,0.116,4295.1,4294.4,0.116]
[1757083008881,0.02158131,4295.5,4292.4,7.54668671]
[1757083008882,1.67108131,4295.0,4292.4,7.54668671]
[1757083009226,0.116,4294.1,4293.4,0.116]
[1757083009509,0.116,4293.5,4292.8,0.116]
[1757083009812,0.02158131,4293.4,4291.8,0.025]
[1757083010017,0.116,4292.5,4291.8,0.141]
[1757083010191,0.02158131,4292.4,4291.8,0.025]
[1757083010518,0.116,4292.2,4291.8,0.025]
[1757083010704,1.20358131,4293.0,4291.8,0.025]
[1757083010900,0.18868944,4292.9,4291.8,0.025]
[1757083011084,0.65618944,4292.9,4291.8,0.025]
[1757083011280,5.86318944,4292.9,4291.8,0.025]
[1757083011480,2.32953618,4292.7,4291.8,0.025]
[1757083011709,2.3299704,4291.9,4291.8,0.025]
[1757083011910,0.02158131,4291.9,4291.8,0.025]
[1757083012286,2.35155171,4291.9,4291.8,0.025]
[1757083012698,4.46919403,4291.9,4291.8,0.025]
[1757083012918,7.33622363,4291.9,4290.8,0.025]
[1757083013216,7.33622363,4291.9,4289.8,0.025]
[1757083013217,3.792,4291.8,4289.8,0.025]
[1757083013403,0.792,4291.6,4289.8,0.025]
[1757083013610,0.792,4291.4,4289.8,0.025]
[1757083013822,2.33138274,4289.3,4288.8,0.025]
[1757083014006,2.3309489,4290.1,4288.0,0.004]
[1757083014007,2.33203516,4288.1,4288.0,0.004]
[1757083014204,2.35361647,4288.1,4288.0,0.004]
[1757083014403,4.00311647,4288.1,4288.0,0.004]
[1757083014789,5.13464259,4288.1,4288.0,0.004]
[1757083015129,10.32564259,4288.1,4288.0,0.004]
[1757083015285,10.32664259,4288.1,4288.0,0.004]
[1757083015686,10.32364259,4288.1,4288.0,0.004]
[1757083016113,5.13464259,4288.1,4288.0,0.004]
[1757083016288,10.31964259,4288.1,4288.0,0.004]
[1757083016483,11.11164259,4288.1,4288.0,0.004]
[1757083016683,14.11164259,4288.1,4288.0,0.004]
[1757083016894,3.0,4288.0,4286.0,0.00183083]
[1757083017106,2.33312335,4286.1,4286.0,0.00183083]
[1757083017301,4.05012335,4286.1,4286.0,0.00183083]
[1757083017525,5.72120466,4286.1,4286.0,0.00183083]
[1757083017707,4.51762335,4286.1,4286.0,0.00183083]
[1757083017912,4.53920466,4286.1,4286.0,0.00183083]
[1757083018110,9.22012335,4286.1,4286.0,0.00183083]
[1757083018325,4.51762335,4286.1,4286.0,0.00183083]
[1757083018637,9.23670466,4286.1,4286.0,0.00183083]
[1757083018950,9.21212335,4286.1,4286.0,0.00183083]
[1757083019591,1.717,4286.1,4286.0,0.00183083]
[1757083020305,7.0447,4286.1,4286.0,0.00183083]
[1757083020519,1.717,4286.1,4286.0,0.00183083]
[1757083020824,6.868,4286.1,4286.0,0.00183083]
[1757083021010,8.048,4286.1,4286.0,0.00183083]
[1757083021215,3.3665,4286.1,4286.0,0.00183083]
[1757083021730,6.863,4286.1,4286.0,0.00183083]
[1757083022030,9.1988,4286.1,4286.0,0.00183083]
[1757083022231,9.1988,4286.1,4285.0,0.1]
[1757083022393,13.53158131,4286.0,4285.0,0.1]
[1757083022599,5.37,4286.0,4285.0,0.1]
[1757083022804,1.6495,4285.9,4285.0,0.1]
[1757083023040,0.96386131,4285.8,4285.0,0.1]
[1757083023206,0.02158131,4285.8,4285.2,2.33360402]
[1757083023545,0.02158131,4285.8,4285.0,0.1]
[1757083023546,5.6045,4285.7,4285.0,0.1]
[1757083023837,1.20358131,4285.6,4285.0,0.1]
[1757083024216,0.02158131,4285.6,4285.5,2.33345]
[1757083024416,3.464,4286.5,4285.0,0.1]
[1757083024630,3.466,4286.4,4285.1,0.13053]
[1757083024832,1.718,4286.9,4285.0,0.12333722]
[1757083024833,1.6495,4286.5,4285.0,0.1]
[1757083025028,5.134,4286.4,4285.2,2.33361336]
[1757083025237,1.718,4286.9,4285.0,0.5678]
[1757083025238,5.133,4286.3,4285.0,0.5678]
[1757083025440,5.13,4286.5,4285.2,2.33361336]
[1757083025615,5.13,4286.5,4285.1,1.1803]
[1757083025810,1.718,4286.9,4285.2,0.17481]
[1757083026048,1.718,4286.9,4285.3,0.49113558]
[1757083026248,1.999,4287.5,4285.4,1.1803]
[1757083026546,4.645,4287.4,4285.5,0.4678]
[1757083026723,0.025,4288.8,4285.5,0.4678]
[1757083026724,4.645,4287.9,4286.0,2.33315397]
[1757083026913,4.645,4287.9,4285.6,3.792]
[1757083026914,0.025,4286.8,4286.1,1.8814154]
[1757083027114,1.718,4288.7,4287.7,2.33225272]
[1757083027415,2.33187876,4288.4,4286.2,1.6481]
[1757083027632,0.4675,4288.1,4285.5,1.6481]
[1757083027837,1.718,4288.7,4287.7,2.33225272]
[1757083028024,0.025,4288.8,4287.7,4.21357799]
[1757083028227,1e-08,4288.8,4288.7,2.3317089]
[1757083028424,0.025,4289.8,4289.7,2.33116534]
[1757083028626,0.025,4289.8,4288.4,0.02331872]
[1757083029024,0.025,4289.8,4288.2,1.6481]
[1757083029318,0.025,4289.8,4288.3,0.16481]
[1757083029520,0.025,4289.8,4288.4,1.5669]
[1757083029763,0.025,4289.8,4288.5,1.5669]
[1757083030059,0.025,4289.8,4288.6,3.0]
[1757083030228,1.743,4289.8,4287.7,1.5669]
[1757083030553,2.33121969,4289.6,4286.4,0.4557]
[1757083030757,4.19142303,4289.5,4286.4,0.4557]
[1757083030927,4.19142303,4289.5,4286.5,1.13452905]
[1757083030928,1.508,4289.5,4286.5,1.13452905]
[1757083031120,2.33138274,4289.3,4286.5,1.1112]
[1757083031317,2.33138274,4289.3,4285.8,0.025]
[1757083031318,1.508,4289.2,4285.8,0.025]
[1757083031517,2.33234219,4287.6,4286.6,2.33283851]
[1757083031756,6.875,4287.5,4287.4,2.33241591]
[1757083031925,5.157,4287.6,4285.8,0.18419]
[1757083032126,2.33258202,4287.1,4286.1,2.33308203]
[1757083032454,5.155,4287.4,4285.8,0.025]
[1757083032752,1.718,4287.9,4287.8,0.025]
[1757083033426,3.226,4287.9,4287.8,0.025]
[1757083033827,7.3003,4287.9,4287.8,0.025]
[1757083034155,3.52573,4287.9,4287.8,0.025]
[1757083034328,3.226,4287.9,4287.8,0.025]
[1757083034531,1.718,4287.9,4287.8,0.025]
[1757083034721,0.001,4287.9,4287.8,1.5919]
[1757083034917,1.94,4287.9,4287.8,0.025]
[1757083035142,5.78014393,4287.9,4287.8,0.025]
[1757083035347,3.06732116,4287.9,4287.8,0.025]
[1757083035561,0.001,4287.9,4287.8,0.025]
[1757083035745,0.025,4289.8,4287.9,3.0]
[1757083035953,0.025,4289.8,4288.0,1.13452089]
[1757083035954,0.001,4288.8,4288.0,1.13452089]
[1757083036126,0.001,4288.8,4287.8,0.025]
[1757083036478,0.001,4288.8,4287.9,2.33209503]
[1757083036657,0.001,4288.8,4287.8,0.025]
[1757083036823,0.001,4288.8,4288.0,3.0]
[1757083037224,0.001,4288.8,4288.1,2.33203516]
[1757083037455,0.001,4288.8,4288.0,3.0]
[1757083037767,0.001,4288.8,4288.5,2.33177988]
[1757083037973,0.001,4288.8,4288.3,2.33191574]
[1757083038130,0.001,4288.8,4288.7,2.3317089]
[1757083038628,0.001,4288.8,4288.7,6.92192598]
[1757083038935,0.4303,4288.8,4287.5,2.33231356]
[1757083039119,1.718,4289.4,4287.9,0.02332143]
[1757083039320,1.0777,4289.9,4287.8,0.4807]
[1757083039543,1.0777,4289.9,4287.9,0.18251143]
[1757083039719,0.4303,4290.4,4287.9,0.15919]
[1757083039925,2.76109761,4290.4,4289.0,2.33152774]
[1757083040259,0.4303,4290.4,4288.1,3.0]
[1757083040466,1.718,4290.5,4288.0,1.5669]
[1757083040625,0.21483,4290.4,4288.2,2.33198078]
[1757083040830,6.887,4290.5,4288.3,1.5669]
[1757083041063,0.116,4289.7,4289.3,2.33136858]
[1757083041247,0.116,4289.7,4289.0,0.116]
[1757083041560,0.116,4290.4,4289.6,0.116]
[1757083041738,0.116,4290.4,4289.1,1.1112]
[1757083041739,1.718,4290.5,4289.1,1.1112]
[1757083041940,1.718,4290.5,4288.5,2.33178942]
[1757083042142,2.1483,4290.5,4288.5,3.0]
[1757083042337,5.161,4290.4,4289.1,2.33148029]
[1757083042539,2.33044793,4291.1,4289.1,2.33148029]
[1757083042540,1.0777,4292.3,4289.3,0.792]
[1757083042742,1.0777,4292.3,4290.7,2.33062204]
[1757083043026,1.718,4292.2,4290.7,2.33062204]
[1757083043439,1.718,4292.2,4290.7,3.92082826]
[1757083043767,1.718,4292.2,4290.7,3.76613154]
[1757083043934,1.718,4292.2,4290.7,3.0]
[1757083044263,1.718,4292.2,4289.5,3.0]
[1757083044264,1.508,4291.9,4289.5,3.0]
[1757083044427,1.718,4292.2,4289.5,3.0]
[1757083044428,2.426,4292.1,4290.7,2.33062204]
[1757083044624,2.426,4292.1,4290.6,3.0]
[1757083044859,0.0242,4290.8,4290.7,2.33062204]
[1757083045036,0.0242,4290.8,4290.0,3.0]
[1757083045250,0.0242,4290.8,4290.1,2.3309418]
[1757083045442,0.0242,4290.8,4290.0,2.74211172]
[1757083045762,0.0242,4290.8,4288.9,0.4557]
[1757083045961,3.3953,4290.7,4288.6,1.1112]
[1757083046133,1.508,4290.7,4288.2,1.718]
[1757083046332,1.7422,4290.8,4288.8,0.4807]
[1757083046537,1.7422,4290.8,4288.9,2.33160017]
[1757083046761,0.0242,4290.8,4289.1,3.0]
[1757083047075,0.0242,4290.8,4290.7,2.33062204]
[1757083047428,0.0242,4290.8,4290.7,3.89752204]
[1757083047673,0.025,4291.8,4291.7,2.33007898]
[1757083047895,1e-08,4292.8,4292.7,2.32953618]
[1757083048221,1e-08,4292.8,4292.7,5.35283154]
[1757083048497,1e-08,4292.8,4288.8,0.025]
[1757083048498,0.792,4292.7,4289.2,0.4557]
[1757083048704,2.79570001,4292.8,4289.9,0.4557]
[1757083048885,2.79570001,4292.8,4290.1,2.33094799]
[1757083049089,1.24667,4292.7,4290.2,0.3897848]
[1757083049285,2.79570001,4292.8,4292.7,2.32953618]
[1757083049286,1e-08,4292.8,4292.7,2.32953618]
[1757083049491,1e-08,4292.8,4291.1,2.33039109]
[1757083049492,1e-08,4292.8,4291.5,3.0]
[1757083049788,1e-08,4292.8,4292.7,2.32953618]
[1757083050689,1e-08,4292.8,4292.7,6.89643618]
[1757083050895,1e-08,4292.8,4292.7,5.32953618]
[1757083051113,1e-08,4292.8,4292.7,7.662351]
[1757083051318,1e-08,4292.8,4292.7,10.171351]
[1757083051614,1e-08,4292.8,4292.7,7.812451]
[1757083051903,1e-08,4292.8,4292.7,7.16253618]
[1757083052087,1e-08,4292.8,4291.2,5.179]
[1757083052261,1e-08,4292.8,4292.7,2.32953618]
[1757083052685,1e-08,4292.8,4292.1,3.0]
[1757083052884,1e-08,4292.8,4292.1,3.84119861]
[1757083053092,1e-08,4292.8,4292.7,2.32953618]
[1757083053503,1e-08,4292.8,4292.7,6.60053154]
[1757083053668,1e-08,4292.8,4292.7,7.68843618]
[1757083053864,1e-08,4292.8,4292.7,6.89643618]
[1757083054201,1e-08,4292.8,4292.7,2.32953618]
[1757083054387,1e-08,4292.8,4292.7,3.91973154]
[1757083054590,1e-08,4292.8,4292.7,2.32953618]
[1757083054791,1e-08,4292.8,4292.4,14.5]
[1757083055099,1e-08,4292.8,4292.7,2.78523618]
[1757083055301,1e-08,4292.8,4292.7,4.1749598]
[1757083055509,1e-08,4292.8,4292.7,9.3659598]
[1757083055674,1e-08,4292.8,4292.7,12.3659598]
[1757083055870,1e-08,4292.8,4292.7,13.1579598]
[1757083056111,0.05,4294.8,4294.7,2.32845134]
[1757083056270,0.05,4294.8,4294.7,10.51345134]
[1757083056465,0.05,4294.8,4294.7,10.96915134]
[1757083056667,0.05,4294.8,4294.7,6.65821888]
[1757083056900,0.05,4294.8,4294.7,7.50745134]
[1757083057100,0.05,4294.8,4294.7,10.50745134]
[1757083057600,0.05,4294.8,4294.7,2.32845134]
[1757083057806,0.05,4294.8,4294.7,2.35173585]
[1757083058103,0.05,4294.8,4294.7,2.32845134]
[1757083058267,0.05,4294.8,4294.7,4.0676488]
[1757083058471,0.001,4295.7,4294.9,0.792]
[1757083058674,0.025,4297.8,4295.5,0.792]
[1757083058893,0.025,4297.8,4295.8,5.32785511]
[1757083059095,0.025,4297.8,4295.6,9.91027963]
[1757083059096,0.025,4297.8,4297.3,2.32699986]
[1757083059414,0.025,4297.8,4297.5,2.3269174]
[1757083059711,0.025,4297.8,4297.2,3.0]
[1757083060008,0.025,4297.8,4297.2,0.9882]
[1757083060209,0.025,4297.8,4297.0,5.162]
[1757083060613,0.025,4297.8,4297.2,2.32709671]
[1757083060819,0.025,4297.8,4297.3,0.02327042]
[1757083061121,0.025,4297.8,4297.6,2.32688011]
[1757083061477,0.025,4297.8,4297.6,19.82688011]
[1757083061698,0.025,4297.8,4297.6,24.99088011]
[1757083061896,0.025,4297.8,4297.6,28.77008808]
[1757083062071,0.025,4297.8,4297.6,29.67808808]
[1757083062278,1e-08,4297.8,4297.7,6.11882597]
[1757083062496,0.001,4298.6,4298.5,2.32639292]
[1757083062697,1.072,4301.0,4298.5,12.19839292]
[1757083062973,1.5567,4301.8,4299.9,2.32563547]
[1757083063187,1.5567,4301.8,4299.9,11.27163547]
[1757083063509,0.025,4301.8,4300.7,2.32520287]
[1757083063695,0.025,4301.8,4300.7,3.0]
[1757083063899,5.96060736,4302.3,4300.7,1.0606]
[1757083064223,5.96060736,4302.3,4300.6,2.32525172]
[1757083064224,0.59606074,4302.2,4300.9,3.0]
[1757083064422,0.001,4302.6,4301.0,9.18904068]
[1757083064721,0.001,4302.6,4301.1,3.02324986]
[1757083064872,0.001,4302.6,4301.0,1.715]
[1757083065074,0.001,4302.6,4301.1,19.644]
[1757083065401,0.001,4302.6,4301.2,3.0]
[1757083065605,0.001,4302.6,4301.3,1.30674624]
[1757083065803,0.001,4302.6,4301.4,5.141]
[1757083066007,0.001,4302.6,4301.6,3.0]
[1757083066183,0.001,4302.6,4301.8,3.0]
[1757083066378,2.32448401,4302.1,4301.4,5.139]
[1757083066576,1.072,4302.3,4301.4,5.139]
[1757083066772,1.072,4302.3,4301.4,2.32480578]
[1757083066995,0.001,4302.6,4301.5,5.136]
[1757083067194,2.325213,4302.6,4301.6,5.138]
[1757083067411,2.32433006,4302.4,4301.6,5.137]
[1757083067594,0.001,4302.6,4301.9,2.32454097]
[1757083067786,0.001,4302.6,4301.9,2.32450457]
[1757083069616,1.68497,4302.4,4300.4,3.0]
[1757083069817,2.32459913,4301.9,4300.7,2.32520141]
[1757083070113,1.68497,4302.4,4301.0,2.32499966]
[1757083070280,1.68497,4302.4,4301.0,2.32504068]
[1757083070485,1.68497,4302.4,4301.4,2.32477541]
[1757083070681,2.32439217,4302.2,4301.3,0.004]
[1757083070880,2.32465754,4301.8,4301.3,0.004]
[1757083071116,0.40093622,4302.1,4301.3,0.004]
[1757083071295,2.32479765,4301.5,4301.3,0.004]
[1757083071620,3.85652447,4301.4,4301.3,0.004]
[1757083072020,3.85652447,4301.4,4300.9,0.004]
[1757083072021,2.32504068,4301.0,4300.9,0.004]
[1757083072391,3.85674068,4301.0,4300.9,0.004]
[1757083072592,3.85594068,4301.0,4300.9,0.004]
[1757083072817,4.64543181,4301.0,4300.9,0.004]
[1757083073201,1.072,4301.0,4300.9,0.004]
[1757083073419,1.714,4301.3,4300.9,0.004]
[1757083074020,2.1737,4301.3,4300.9,0.004]
[1757083074326,0.116,4301.3,4300.9,0.004]
[1757083074691,0.03432754,4301.4,4301.1,0.116]
[1757083074898,0.03432754,4301.4,4301.3,2.32487852]
[1757083075114,0.03432754,4301.4,4301.2,0.116]
[1757083075518,0.03432754,4301.4,4301.3,2.32487852]
[1757083076197,0.03432754,4301.4,4301.3,2.77557852]
[1757083076401,0.03432754,4301.4,4301.3,7.0483044]
[1757083076698,0.03432754,4301.4,4301.3,8.15693259]
[1757083077592,0.001,4302.3,4301.3,8.15693259]
[1757083077593,0.001,4302.3,4301.3,0.21212588]
[1757083077922,0.001,4302.3,4301.8,2.32455788]
[1757083078097,0.001,4302.3,4301.2,3.0]
[1757083078304,0.001,4302.3,4302.2,2.32439217]
[1757083078926,0.001,4302.3,4302.2,2.53651805]
[1757083079109,0.001,4302.3,4302.2,6.53031591]
[1757083079309,0.001,4302.3,4302.2,8.04161591]
[1757083080201,0.001,4302.3,4302.2,8.83361591]
[1757083080523,0.001,4302.3,4302.2,11.60631591]
[1757083080732,0.001,4302.3,4302.2,13.11761591]
[1757083081024,1e-08,4302.8,4302.7,3.11612206]
[1757083081226,1e-08,4304.8,4304.7,2.32304225]
[1757083081428,1e-08,4304.8,4304.7,10.42227267]
[1757083081625,1e-08,4304.8,4304.7,12.12323716]
[1757083082337,1e-08,4306.8,4306.7,2.32196345]
[1757083082498,1e-08,4306.8,4306.7,8.75915836]
[1757083082698,1e-08,4306.8,4306.7,14.62615836]
[1757083082898,1e-08,4306.8,4306.7,9.55115836]
[1757083083118,0.025,4308.8,4308.7,2.32088564]
[1757083083439,0.0002,4309.6,4309.5,2.3204548]
[1757083083638,0.0002,4309.6,4309.5,0.21289491]
[1757083083802,1.0722,4309.6,4309.5,2.53334971]
[1757083083999,0.0002,4309.6,4309.5,2.53334971]
[1757083084929,0.0002,4309.6,4309.5,0.21289491]
[1757083085128,0.4599,4309.6,4309.5,0.21289491]
[1757083085295,1.5319,4309.6,4309.5,0.21289491]
[1757083086106,1.5319,4309.6,4307.5,1.712]
[1757083086107,0.116,4309.5,4307.9,0.116]
[1757083086307,0.116,4309.5,4304.6,3.45912107]
[1757083086308,0.116,4308.4,4308.0,0.21215544]
[1757083086633,6.6037,4308.3,4306.4,2.32210066]
[1757083086927,6.6037,4308.3,4305.8,1.712]
[1757083086928,2.32120888,4308.1,4306.5,5.072]
[1757083087127,0.4597,4308.0,4306.5,5.072]
[1757083087331,2.3213844,4307.8,4306.8,2.32185796]
[1757083087630,2.3213844,4307.8,4305.8,1.712]
[1757083087631,1.5317,4307.7,4305.9,5.071]
[1757083087817,0.4597,4307.6,4305.9,5.071]
[1757083087998,1.68487,4307.5,4305.9,5.071]
[1757083088197,1.68487,4307.5,4305.8,1.712]
[1757083088198,1.5317,4307.4,4305.8,1.712]
[1757083088394,3.544,4307.3,4304.9,0.02322934]
[1757083088634,1.072,4307.3,4304.9,2.32293433]
[1757083088831,1.072,4307.3,4304.8,3.012]
[1757083089128,3.365217,4307.2,4303.7,5.071]
[1757083089329,3.365217,4307.2,4303.8,3.025]
[1757083089330,0.792,4307.1,4303.8,3.025]
[1757083089535,0.792,4306.9,4303.8,0.025]
[1757083089695,5.349,4306.8,4303.9,2.3234626]
[1757083089902,0.792,4306.6,4304.0,2.32339912]
[1757083090219,2.32292561,4305.0,4304.1,2.32335656]
[1757083090402,1.6179,4305.8,4303.8,0.025]
[1757083090604,0.4467,4306.4,4304.8,0.025]
[1757083090798,0.4467,4306.4,4305.0,3.0]
[1757083091003,2.76887795,4306.4,4304.8,0.025]
[1757083091233,1.1712,4306.3,4304.8,0.025]
[1757083091610,1.2387,4306.2,4304.8,0.025]
[1757083091822,0.4467,4306.2,4304.8,0.025]
[1757083092203,1.1712,4306.1,4304.8,0.025]
[1757083092533,2.3227232,4305.3,4304.8,0.025]
[1757083092832,1.711,4305.9,4304.8,0.025]
[1757083093031,2.32288072,4305.0,4304.8,0.025]
[1757083093219,2.18302425,4305.8,4304.8,0.025]
[1757083093419,1.711,4305.9,4304.8,0.025]
[1757083093623,0.4467,4305.9,4305.0,2.32282783]
[1757083093934,0.4467,4305.8,4304.8,0.025]
[1757083094103,1.6179,4305.8,4304.8,0.025]
[1757083094302,1.6179,4305.8,4302.3,1.711]
[1757083094303,0.792,4305.5,4302.3,1.711]
[1757083094555,0.792,4305.3,4302.4,0.69820619]
[1757083094734,0.792,4305.3,4302.5,14.5]
[1757083094933,6.6879,4305.2,4302.5,14.5]
[1757083095100,6.6879,4305.2,4302.6,0.69820619]
[1757083095433,0.792,4305.1,4302.3,1.711]
[1757083095631,0.792,4305.1,4302.7,2.32407117]
[1757083095835,0.792,4304.9,4302.1,0.69820619]
[1757083096021,0.792,4304.9,4301.8,0.025]
[1757083096210,0.39065567,4305.4,4301.8,0.025]
[1757083096211,0.792,4304.7,4301.8,2.3495733]
[1757083096411,0.792,4304.5,4302.2,0.116]
[1757083096611,0.792,4304.5,4301.8,0.025]
[1757083096811,0.792,4304.3,4301.8,0.025]
[1757083097035,0.116,4302.8,4301.8,0.025]
[1757083097237,1.6179,4302.7,4301.8,0.025]
[1757083097536,2.32417607,4302.6,4301.8,0.025]
[1757083097723,2.32437326,4302.3,4301.8,0.025]
[1757083097926,2.77096276,4302.5,4301.8,0.025]
[1757083098128,1.6179,4302.2,4301.8,0.025]
[1757083098436,2.32482447,4301.4,4301.3,0.004]
[1757083098642,2.32504068,4301.0,4300.5,0.004]
[1757083098828,2.77922682,4301.0,4300.5,0.004]
[1757083099025,3.94294068,4301.0,4300.5,0.004]
[1757083099210,5.35,4302.3,4300.5,0.004]
[1757083099408,3.94294068,4301.0,4300.5,0.004]
[1757083100315,1.6179,4301.0,4300.5,0.004]
[1757083100519,3.94214068,4301.0,4300.5,0.004]
[1757083100717,1.1712,4301.5,4300.5,0.004]
[1757083100917,2.32504068,4301.0,4300.5,0.004]
[1757083101341,3.49624068,4301.0,4300.5,0.004]
[1757083101844,0.116,4300.9,4300.5,0.004]
[1757083102050,3.61229474,4300.9,4300.5,0.004]
[1757083102511,4.05899474,4300.9,4300.5,0.004]
[1757083102842,4.69739477,4300.9,4300.5,0.004]
[1757083103237,0.792,4300.8,4299.8,0.025]
[1757083103543,2.32063547,4299.9,4299.8,0.025]
[1757083104334,0.4467,4300.7,4299.8,0.025]
[1757083104335,5.071,4301.0,4299.8,0.025]
[1757083104918,2.1587,4301.1,4299.8,0.025]
[1757083104919,5.071,4300.9,4299.8,0.025]
[1757083105115,5.071,4300.9,4300.0,2.32553895]
[1757083105316,6.33142134,4300.9,4299.8,0.025]
[1757083105629,7.39578315,4301.5,4299.8,0.025]
[1757083105832,5.071,4301.5,4299.8,0.025]
[1757083106046,0.4467,4301.7,4299.8,0.025]
[1757083106226,5.071,4301.5,4299.9,0.4364]
[1757083106415,5.071,4301.5,4300.0,1.1417]
[1757083106620,1.712,4302.1,4300.1,0.4364]
[1757083106927,0.025,4301.8,4300.1,0.4364]
[1757083107144,2.32495003,4301.2,4300.0,3.0]
[1757083107446,5.096,4301.8,4300.1,0.4364]
[1757083107852,5.096,4301.8,4300.9,2.32504369]
[1757083108059,5.096,4301.8,4300.9,2.32505949]
[1757083108264,2.34962752,4301.8,4300.3,3.0]
[1757083108462,5.353,4305.3,4300.4,2.3701]
[1757083108622,0.4467,4306.0,4303.7,2.32358203]
[1757083108822,0.4467,4306.0,4303.7,2.34681785]
[1757083108823,0.001,4305.4,4303.7,2.34681785]
[1757083109025,1.1712,4305.3,4303.7,14.5]
[1757083109256,2.3229371,4304.9,4303.3,1.713]
[1757083109460,2.34802571,4304.8,4303.3,1.713]
[1757083109666,0.025,4304.8,4303.6,2.32360785]
[1757083109966,2.34799683,4304.8,4303.7,2.32358203]
[1757083110168,0.025,4304.8,4303.4,0.4364]
[1757083110324,0.025,4304.8,4303.4,2.32369907]
[1757083110325,1.1712,4304.6,4303.4,2.32369907]